[Event "Early-Titled-Tuesday-Blitz-November-28-2023"]
[Site "Chess.com"]
[Date "2023.11.28"]
[Round "10"]
[White "marvinguevara"]
[Black "elmusmolamas"]
[Result "0-1"]
[WhiteElo "2178"]
[BlackElo "2561"]
[TimeControl "180+1"]
[EndTime "10:03:13 PST"]
[Termination "elmusmolamas won by resignation"]

1. e4 {[%clk 0:03:00.9]} 1... e5 {[%clk 0:02:59.2]} 2. Nf3 {[%clk 0:03:00.7]}
2... Nf6 {[%clk 0:02:59.8]} 3. Nxe5 {[%clk 0:02:58.7]} 3... d6 {[%clk
0:02:55.1]} 4. Nf3 {[%clk 0:02:57.5]} 4... Nxe4 {[%clk 0:02:54.9]} 5. d4 {[%clk
0:02:56.6]} 5... d5 {[%clk 0:02:52.2]} 6. Bd3 {[%clk 0:02:56.1]} 6... Be7 {[%clk
0:02:48]} 7. O-O {[%clk 0:02:55.2]} 7... O-O {[%clk 0:02:47.4]} 8. c4 {[%clk
0:02:54.9]} 8... c6 {[%clk 0:02:41.8]} 9. Nc3 {[%clk 0:02:53.9]} 9... Nxc3
{[%clk 0:02:35]} 10. bxc3 {[%clk 0:02:53.5]} 10... dxc4 {[%clk 0:02:32.5]} 11.
Bxc4 {[%clk 0:02:54.4]} 11... Bf5 {[%clk 0:02:27.3]} 12. Ne5 {[%clk 0:02:50.3]}
12... Nd7 {[%clk 0:02:21.9]} 13. Bf4 {[%clk 0:02:21.7]} 13... Bf6 {[%clk
0:01:48.5]} 14. Qh5 {[%clk 0:01:54.6]} 14... Nxe5 {[%clk 0:00:51.7]} 15. Bxe5
{[%clk 0:01:51.7]} 15... Bg6 {[%clk 0:00:49.7]} 16. Bxf6 {[%clk 0:01:39.8]}
16... Qxf6 {[%clk 0:00:49.4]} 17. Qe2 {[%clk 0:01:31.2]} 17... Rfe8 {[%clk
0:00:49.1]} 18. Qb2 {[%clk 0:01:27.7]} 18... Qe7 {[%clk 0:00:46.9]} 19. h3
{[%clk 0:01:23.1]} 19... Rad8 {[%clk 0:00:44]} 20. a3 {[%clk 0:01:17.9]} 20...
b6 {[%clk 0:00:42.6]} 21. Qb4 {[%clk 0:01:11.3]} 21... c5 {[%clk 0:00:38.3]} 22.
dxc5 {[%clk 0:01:09.4]} 22... Qxc5 {[%clk 0:00:39.2]} 23. Qxc5 {[%clk
0:01:09.2]} 23... bxc5 {[%clk 0:00:40.1]} 24. Rad1 {[%clk 0:01:06.7]} 24... Bc2
{[%clk 0:00:37]} 25. Rc1 {[%clk 0:00:56.7]} 25... Ba4 {[%clk 0:00:34.9]} 26.
Rfe1 {[%clk 0:00:54.4]} 26... Kf8 {[%clk 0:00:30.3]} 27. Rb1 {[%clk 0:00:43]}
27... Rxe1+ {[%clk 0:00:28.7]} 28. Rxe1 {[%clk 0:00:42.4]} 28... Rd2 {[%clk
0:00:27.6]} 29. Rb1 {[%clk 0:00:41.6]} 29... Bc6 {[%clk 0:00:22.5]} 30. Rb8+
{[%clk 0:00:34.5]} 30... Ke7 {[%clk 0:00:22.7]} 31. Rc8 {[%clk 0:00:33.4]} 31...
Kd7 {[%clk 0:00:16.2]} 32. Rg8 {[%clk 0:00:30.8]} 32... g6 {[%clk 0:00:08]} 33.
Bxf7 {[%clk 0:00:30.1]} 33... Kc7 {[%clk 0:00:06]} 34. Rg7 {[%clk 0:00:28.1]}
34... Kb6 {[%clk 0:00:04.2]} 35. Rxh7 {[%clk 0:00:25.6]} 35... Be4 {[%clk
0:00:04.9]} 36. Rg7 {[%clk 0:00:23.1]} 36... Rd1+ {[%clk 0:00:05.3]} 37. Kh2
{[%clk 0:00:22.8]} 37... Rd6 {[%clk 0:00:06.2]} 38. f3 {[%clk 0:00:21.2]} 38...
Bc2 {[%clk 0:00:05.2]} 39. Bc4 {[%clk 0:00:18.7]} 39... Rf6 {[%clk 0:00:02.8]}
40. h4 {[%clk 0:00:16.5]} 40... Rf4 {[%clk 0:00:03]} 41. Kg3 {[%clk 0:00:16.3]}
41... Rxc4 {[%clk 0:00:02.9]} 42. Re7 {[%clk 0:00:12.1]} 42... Rxc3 {[%clk
0:00:02.8]} 43. h5 {[%clk 0:00:08.5]} 43... gxh5 {[%clk 0:00:02.8]} 44. Re5
{[%clk 0:00:08.8]} 44... Rc4 {[%clk 0:00:02.7]} 45. Rxh5 {[%clk 0:00:08.6]}
45... Rd4 {[%clk 0:00:02.9]} 46. Rh6+ {[%clk 0:00:07.4]} 46... Kb5 {[%clk
0:00:03]} 47. Kf2 {[%clk 0:00:08.3]} 47... c4 {[%clk 0:00:03.2]} 48. Ke3 {[%clk
0:00:08.5]} 48... Rd3+ {[%clk 0:00:03.1]} 49. Ke2 {[%clk 0:00:08.5]} 49... Rd7
{[%clk 0:00:03.5]} 50. Rh5+ {[%clk 0:00:07.5]} 50... Ka4 {[%clk 0:00:04]} 51.
Rh4 {[%clk 0:00:07]} 51... Kb3 {[%clk 0:00:04.2]} 52. g4 {[%clk 0:00:06.2]}
52... Bd1+ {[%clk 0:00:03.5]} 53. Ke1 {[%clk 0:00:06.1]} 53... c3 {[%clk
0:00:04]} 54. f4 {[%clk 0:00:05.4]} 54... c2 {[%clk 0:00:04.4]} 55. Rh2 {[%clk
0:00:05.1]} 55... Kb2 {[%clk 0:00:05]} 56. Rxc2+ {[%clk 0:00:03.1]} 56... Bxc2
{[%clk 0:00:04.9]} 57. f5 {[%clk 0:00:03.2]} 57... Bxf5 {[%clk 0:00:04.7]} 58.
gxf5 {[%clk 0:00:03.1]} 58... Rf7 {[%clk 0:00:05.6]} 0-1

[Event "Early-Titled-Tuesday-Blitz-November-28-2023"]
[Site "Chess.com"]
[Date "2023.11.28"]
[Round "10"]
[White "queen_iryna"]
[Black "DDTerziev04"]
[Result "1/2-1/2"]
[WhiteElo "2303"]
[BlackElo "2146"]
[TimeControl "180+1"]
[EndTime "10:03:22 PST"]
[Termination "Game drawn by stalemate"]

1. e4 {[%clk 0:03:00.9]} 1... c5 {[%clk 0:02:56.6]} 2. Nf3 {[%clk 0:03:00.5]}
2... d6 {[%clk 0:02:56.7]} 3. Bb5+ {[%clk 0:03:00]} 3... Bd7 {[%clk 0:02:55.9]}
4. Bxd7+ {[%clk 0:02:59.6]} 4... Nxd7 {[%clk 0:02:55.4]} 5. O-O {[%clk
0:02:59.4]} 5... Ngf6 {[%clk 0:02:52.7]} 6. Re1 {[%clk 0:03:00.3]} 6... e6
{[%clk 0:02:47.8]} 7. c3 {[%clk 0:03:00.3]} 7... Be7 {[%clk 0:02:46.8]} 8. d4
{[%clk 0:03:00.5]} 8... cxd4 {[%clk 0:02:46.4]} 9. cxd4 {[%clk 0:03:01.4]} 9...
O-O {[%clk 0:02:46.5]} 10. Nc3 {[%clk 0:03:00.7]} 10... Qb6 {[%clk 0:02:24.8]}
11. b3 {[%clk 0:02:51.6]} 11... Rac8 {[%clk 0:02:16.2]} 12. Bb2 {[%clk
0:02:48.3]} 12... Rfd8 {[%clk 0:02:05.4]} 13. Rc1 {[%clk 0:02:46.8]} 13... Qa5
{[%clk 0:02:03.6]} 14. Qe2 {[%clk 0:02:33.2]} 14... e5 {[%clk 0:01:49.1]} 15.
Red1 {[%clk 0:02:13.6]} 15... Nh5 {[%clk 0:01:38.3]} 16. dxe5 {[%clk 0:01:41.9]}
16... Nf4 {[%clk 0:01:33.4]} 17. Qd2 {[%clk 0:01:36.1]} 17... dxe5 {[%clk
0:01:29.6]} 18. Nd5 {[%clk 0:01:35.8]} 18... Qxd2 {[%clk 0:01:20.8]} 19. Nxe7+
{[%clk 0:01:35.6]} 19... Kf8 {[%clk 0:01:19.7]} 20. Rxd2 {[%clk 0:01:35.1]}
20... Rxc1+ {[%clk 0:01:19]} 21. Bxc1 {[%clk 0:01:36]} 21... Kxe7 {[%clk
0:01:16.4]} 22. Ba3+ {[%clk 0:01:36.6]} 22... Ke8 {[%clk 0:01:14.1]} 23. g3
{[%clk 0:01:34.6]} 23... Ne6 {[%clk 0:01:13]} 24. Kf1 {[%clk 0:01:27]} 24... f6
{[%clk 0:01:11.1]} 25. Ke2 {[%clk 0:01:26.4]} 25... Nb8 {[%clk 0:01:10.8]} 26.
Rxd8+ {[%clk 0:01:27.3]} 26... Kxd8 {[%clk 0:01:10.6]} 27. Kd3 {[%clk 0:01:24]}
27... Kd7 {[%clk 0:01:10.4]} 28. Kc4 {[%clk 0:01:23.1]} 28... Kc6 {[%clk
0:01:07.5]} 29. Nh4 {[%clk 0:01:19.2]} 29... Nd7 {[%clk 0:01:01.9]} 30. Nf5
{[%clk 0:01:17.6]} 30... b5+ {[%clk 0:00:58.2]} 31. Kd3 {[%clk 0:01:16.5]} 31...
Ndc5+ {[%clk 0:00:56.5]} 32. Bxc5 {[%clk 0:01:15.4]} 32... Nxc5+ {[%clk
0:00:57.4]} 33. Ke3 {[%clk 0:01:15.9]} 33... Ne6 {[%clk 0:00:56.7]} 34. f4
{[%clk 0:01:13.9]} 34... g6 {[%clk 0:00:47.2]} 35. Ne7+ {[%clk 0:01:11.7]} 35...
Kd6 {[%clk 0:00:38.9]} 36. Ng8 {[%clk 0:01:12.6]} 36... exf4+ {[%clk 0:00:35.7]}
37. gxf4 {[%clk 0:01:12.2]} 37... f5 {[%clk 0:00:34.9]} 38. e5+ {[%clk
0:01:11.6]} 38... Kc6 {[%clk 0:00:34.2]} 39. Nf6 {[%clk 0:01:09.5]} 39... h6
{[%clk 0:00:31.3]} 40. Ng8 {[%clk 0:01:09.1]} 40... g5 {[%clk 0:00:29.2]} 41.
fxg5 {[%clk 0:01:05.7]} 41... hxg5 {[%clk 0:00:28.5]} 42. Ne7+ {[%clk
0:01:05.8]} 42... Kc5 {[%clk 0:00:27.2]} 43. Nxf5 {[%clk 0:01:04.5]} 43... Kd5
{[%clk 0:00:27]} 44. Nd6 {[%clk 0:01:00.4]} 44... a6 {[%clk 0:00:26.7]} 45. Nf7
{[%clk 0:00:57.2]} 45... a5 {[%clk 0:00:20.5]} 46. Nd6 {[%clk 0:00:45.7]} 46...
b4 {[%clk 0:00:18.5]} 47. Nb7 {[%clk 0:00:44.6]} 47... a4 {[%clk 0:00:17.5]} 48.
bxa4 {[%clk 0:00:43.7]} 48... Kxe5 {[%clk 0:00:17.8]} 49. a5 {[%clk 0:00:42.3]}
49... Nc7 {[%clk 0:00:17.9]} 50. Nc5 {[%clk 0:00:31.8]} 50... Nb5 {[%clk
0:00:14.6]} 51. a6 {[%clk 0:00:30.1]} 51... Kd5 {[%clk 0:00:13.9]} 52. Ne4
{[%clk 0:00:29]} 52... g4 {[%clk 0:00:08]} 53. Nf6+ {[%clk 0:00:29]} 53... Ke5
{[%clk 0:00:07.7]} 54. Nxg4+ {[%clk 0:00:29.9]} 54... Kf5 {[%clk 0:00:08.1]} 55.
Nf2 {[%clk 0:00:26.2]} 55... Kg5 {[%clk 0:00:08.3]} 56. Nd3 {[%clk 0:00:26]}
56... Kh4 {[%clk 0:00:07.7]} 57. Nxb4 {[%clk 0:00:26.2]} 57... Kh3 {[%clk
0:00:08.1]} 58. Nc6 {[%clk 0:00:26.4]} 58... Nc7 {[%clk 0:00:06.6]} 59. a7
{[%clk 0:00:25.9]} 59... Kxh2 {[%clk 0:00:06.5]} 60. a4 {[%clk 0:00:24.4]} 60...
Kg3 {[%clk 0:00:06.6]} 61. Kd4 {[%clk 0:00:24.4]} 61... Kf4 {[%clk 0:00:06.6]}
62. Kc5 {[%clk 0:00:24.8]} 62... Na8 {[%clk 0:00:01.8]} 63. Kd6 {[%clk
0:00:19.9]} 63... Kf5 {[%clk 0:00:01.7]} 64. Nd8 {[%clk 0:00:17]} 64... Kf6
{[%clk 0:00:01.1]} 65. Kc6 {[%clk 0:00:17.3]} 65... Ke7 {[%clk 0:00:01.2]} 66.
Kb7 {[%clk 0:00:17.6]} 66... Kxd8 {[%clk 0:00:01.3]} 67. a5 {[%clk 0:00:11.3]}
67... Kd7 {[%clk 0:00:01.2]} 68. a6 {[%clk 0:00:10]} 68... Kd8 {[%clk
0:00:01.5]} 69. Kxa8 {[%clk 0:00:08.2]} 69... Kc8 {[%clk 0:00:02.4]} 1/2-1/2

[Event "Early-Titled-Tuesday-Blitz-November-28-2023"]
[Site "Chess.com"]
[Date "2023.11.28"]
[Round "10"]
[White "Jospem"]
[Black "wonderfultime"]
[Result "1/2-1/2"]
[WhiteElo "3062"]
[BlackElo "3083"]
[TimeControl "180+1"]
[EndTime "10:03:30 PST"]
[Termination "Game drawn - insufficient material"]

1. e4 {[%clk 0:02:59.4]} 1... e5 {[%clk 0:02:59.2]} 2. Nc3 {[%clk 0:02:58.2]}
2... Nc6 {[%clk 0:02:58.3]} 3. Nf3 {[%clk 0:02:58.3]} 3... Nf6 {[%clk
0:02:56.7]} 4. h3 {[%clk 0:02:58.7]} 4... Bb4 {[%clk 0:02:52.9]} 5. a3 {[%clk
0:02:56.5]} 5... Bxc3 {[%clk 0:02:50.4]} 6. dxc3 {[%clk 0:02:57.4]} 6... h6
{[%clk 0:02:48.7]} 7. Bd3 {[%clk 0:02:53.4]} 7... O-O {[%clk 0:02:47.4]} 8. Qe2
{[%clk 0:02:50.2]} 8... d5 {[%clk 0:02:42.9]} 9. Nd2 {[%clk 0:02:45.7]} 9...
dxe4 {[%clk 0:02:38.4]} 10. Nxe4 {[%clk 0:02:46.6]} 10... Nxe4 {[%clk
0:02:38.9]} 11. Bxe4 {[%clk 0:02:40.2]} 11... Qf6 {[%clk 0:02:29.2]} 12. g4
{[%clk 0:02:26.1]} 12... Qe6 {[%clk 0:01:54.4]} 13. Rg1 {[%clk 0:02:18.3]} 13...
Ne7 {[%clk 0:01:52.8]} 14. Bd2 {[%clk 0:02:04.7]} 14... Bd7 {[%clk 0:01:46.8]}
15. g5 {[%clk 0:01:50.4]} 15... hxg5 {[%clk 0:01:36.5]} 16. Bxg5 {[%clk
0:01:46.5]} 16... Bc6 {[%clk 0:01:10.4]} 17. Bxe7 {[%clk 0:01:27]} 17... Qxe7
{[%clk 0:01:11.3]} 18. O-O-O {[%clk 0:01:27.1]} 18... Rfd8 {[%clk 0:00:52.2]}
19. Rde1 {[%clk 0:01:26.6]} 19... Rd6 {[%clk 0:00:32.5]} 20. Bxc6 {[%clk
0:01:19.6]} 20... Rxc6 {[%clk 0:00:33.4]} 21. Qxe5 {[%clk 0:01:15.7]} 21... Qxe5
{[%clk 0:00:34.3]} 22. Rxe5 {[%clk 0:01:16.3]} 22... Rf6 {[%clk 0:00:35.2]} 23.
Re2 {[%clk 0:00:55.7]} 23... g6 {[%clk 0:00:35.4]} 24. Rd1 {[%clk 0:00:51.7]}
24... Kg7 {[%clk 0:00:21.6]} 25. Rd7 {[%clk 0:00:50.8]} 25... Rc6 {[%clk
0:00:17.2]} 26. Ree7 {[%clk 0:00:48.4]} 26... Rf6 {[%clk 0:00:14.3]} 27. Rxc7
{[%clk 0:00:41.4]} 27... Rxf2 {[%clk 0:00:14.9]} 28. Rxb7 {[%clk 0:00:30.2]}
28... Rh8 {[%clk 0:00:15.5]} 29. Re3 {[%clk 0:00:27.7]} 29... Rd8 {[%clk
0:00:15.6]} 30. Rd3 {[%clk 0:00:10.9]} 30... Re8 {[%clk 0:00:15.5]} 31. Kb1
{[%clk 0:00:11.3]} 31... Ree2 {[%clk 0:00:13.1]} 32. Rdd7 {[%clk 0:00:08.9]}
32... a5 {[%clk 0:00:11.5]} 33. a4 {[%clk 0:00:08.7]} 33... g5 {[%clk
0:00:11.5]} 34. Ka2 {[%clk 0:00:08.4]} 34... Rxc2 {[%clk 0:00:11.3]} 35. Rd5
{[%clk 0:00:08.6]} 35... Kg6 {[%clk 0:00:11.2]} 36. Rxa5 {[%clk 0:00:08.9]}
36... Rxc3 {[%clk 0:00:11.5]} 37. Ra6+ {[%clk 0:00:07.9]} 37... f6 {[%clk
0:00:11.9]} 38. Rab6 {[%clk 0:00:06.2]} 38... Rxh3 {[%clk 0:00:11.3]} 39. a5
{[%clk 0:00:06.9]} 39... Rf4 {[%clk 0:00:08.2]} 40. b3 {[%clk 0:00:05.4]} 40...
Rh2+ {[%clk 0:00:06.4]} 41. Ka3 {[%clk 0:00:05.9]} 41... Rh1 {[%clk 0:00:06.7]}
42. a6 {[%clk 0:00:05.7]} 42... Ra1+ {[%clk 0:00:06.3]} 43. Kb2 {[%clk
0:00:06.1]} 43... Rff1 {[%clk 0:00:07.2]} 44. Kc3 {[%clk 0:00:06.1]} 44... g4
{[%clk 0:00:07.2]} 45. Rb8 {[%clk 0:00:06.7]} 45... Kf5 {[%clk 0:00:05.6]} 46.
Rf8 {[%clk 0:00:07.3]} 46... Ke5 {[%clk 0:00:05.5]} 47. Rg8 {[%clk 0:00:03.7]}
47... f5 {[%clk 0:00:05.6]} 48. Rg7 {[%clk 0:00:02.6]} 48... Kf4 {[%clk
0:00:05.9]} 49. a7 {[%clk 0:00:03.1]} 49... Rfc1+ {[%clk 0:00:05.8]} 50. Kb4
{[%clk 0:00:03.3]} 50... g3 {[%clk 0:00:05.5]} 51. Rb8 {[%clk 0:00:02.8]} 51...
Rxa7 {[%clk 0:00:02.7]} 52. Rxa7 {[%clk 0:00:02.2]} 52... g2 {[%clk 0:00:03.4]}
53. Rg7 {[%clk 0:00:02.1]} 53... g1=Q {[%clk 0:00:03.9]} 54. Rxg1 {[%clk
0:00:02.2]} 54... Rxg1 {[%clk 0:00:04.8]} 55. Rf8 {[%clk 0:00:02.4]} 55... Ke5
{[%clk 0:00:04.7]} 56. Ka5 {[%clk 0:00:01.6]} 56... Ra1+ {[%clk 0:00:05]} 57.
Kb5 {[%clk 0:00:01.7]} 57... f4 {[%clk 0:00:05.4]} 58. b4 {[%clk 0:00:02.3]}
58... Ke4 {[%clk 0:00:04.5]} 59. Kc5 {[%clk 0:00:02.4]} 59... Rc1+ {[%clk
0:00:04.4]} 60. Kd6 {[%clk 0:00:02.1]} 60... f3 {[%clk 0:00:05.3]} 61. b5 {[%clk
0:00:02.3]} 61... Rd1+ {[%clk 0:00:05.9]} 62. Kc6 {[%clk 0:00:02.7]} 62... Rc1+
{[%clk 0:00:06.3]} 63. Kd6 {[%clk 0:00:03.2]} 63... Rb1 {[%clk 0:00:06.2]} 64.
Kc6 {[%clk 0:00:03.5]} 64... Ke3 {[%clk 0:00:05.8]} 65. b6 {[%clk 0:00:04]}
65... f2 {[%clk 0:00:06.5]} 66. b7 {[%clk 0:00:04.3]} 66... Rxb7 {[%clk
0:00:05.4]} 67. Kxb7 {[%clk 0:00:03.9]} 67... Ke2 {[%clk 0:00:05.8]} 68. Kc7
{[%clk 0:00:04.5]} 68... f1=Q {[%clk 0:00:05]} 69. Rxf1 {[%clk 0:00:05.4]} 69...
Kxf1 {[%clk 0:00:05.9]} 1/2-1/2

[Event "Early-Titled-Tuesday-Blitz-November-28-2023"]
[Site "Chess.com"]
[Date "2023.11.28"]
[Round "10"]
[White "FM-to-GM"]
[Black "Cheer_Down"]
[Result "1-0"]
[WhiteElo "2668"]
[BlackElo "2504"]
[TimeControl "180+1"]
[EndTime "10:03:31 PST"]
[Termination "FM-to-GM won on time"]

1. d4 {[%clk 0:02:49]} 1... d5 {[%clk 0:02:58.4]} 2. c4 {[%clk 0:02:49]} 2... e6
{[%clk 0:02:58.4]} 3. g3 {[%clk 0:02:48.6]} 3... Nf6 {[%clk 0:02:58.1]} 4. Bg2
{[%clk 0:02:49.2]} 4... Be7 {[%clk 0:02:58.1]} 5. Nf3 {[%clk 0:02:49.5]} 5...
O-O {[%clk 0:02:58.1]} 6. O-O {[%clk 0:02:50.2]} 6... Nbd7 {[%clk 0:02:57.2]} 7.
Nc3 {[%clk 0:02:48.6]} 7... dxc4 {[%clk 0:02:54.3]} 8. a4 {[%clk 0:02:44.6]}
8... a5 {[%clk 0:02:52.8]} 9. e4 {[%clk 0:02:42]} 9... c6 {[%clk 0:02:45.1]} 10.
Qe2 {[%clk 0:02:38.8]} 10... Nb6 {[%clk 0:02:44.7]} 11. Rd1 {[%clk 0:02:37.9]}
11... Bb4 {[%clk 0:02:40.6]} 12. Ne5 {[%clk 0:02:36.7]} 12... Qe7 {[%clk
0:02:10.5]} 13. Nxc4 {[%clk 0:02:36.2]} 13... Nxc4 {[%clk 0:02:10.2]} 14. Qxc4
{[%clk 0:02:36.4]} 14... e5 {[%clk 0:02:04.6]} 15. Bg5 {[%clk 0:02:26.3]} 15...
h6 {[%clk 0:02:00.8]} 16. Bxf6 {[%clk 0:02:14.5]} 16... Qxf6 {[%clk 0:02:00.8]}
17. d5 {[%clk 0:02:15.4]} 17... Bg4 {[%clk 0:01:47.1]} 18. Rd2 {[%clk
0:02:11.7]} 18... cxd5 {[%clk 0:01:40.8]} 19. Nxd5 {[%clk 0:02:08.8]} 19... Qa6
{[%clk 0:01:33.5]} 20. Qxa6 {[%clk 0:02:03.3]} 20... Rxa6 {[%clk 0:01:31.8]} 21.
Rc2 {[%clk 0:01:59.6]} 21... Be6 {[%clk 0:01:18.9]} 22. Bf1 {[%clk 0:01:45.4]}
22... Rd6 {[%clk 0:01:00.6]} 23. Bc4 {[%clk 0:01:41.7]} 23... Bxd5 {[%clk
0:00:57.1]} 24. Bxd5 {[%clk 0:01:41.7]} 24... b6 {[%clk 0:00:56.9]} 25. Rc7
{[%clk 0:01:40.3]} 25... Bc5 {[%clk 0:00:56.4]} 26. Rc1 {[%clk 0:01:36.8]} 26...
Rf6 {[%clk 0:00:56.1]} 27. Rc2 {[%clk 0:01:36.5]} 27... Re8 {[%clk 0:00:54.4]}
28. Kg2 {[%clk 0:01:34.4]} 28... g6 {[%clk 0:00:52.4]} 29. f3 {[%clk 0:01:32.8]}
29... Kg7 {[%clk 0:00:51.9]} 30. Rd2 {[%clk 0:01:29.5]} 30... Rd8 {[%clk
0:00:50.6]} 31. h4 {[%clk 0:01:26.3]} 31... h5 {[%clk 0:00:50.2]} 32. Rc2 {[%clk
0:01:24.8]} 32... Re8 {[%clk 0:00:48.7]} 33. Rc1 {[%clk 0:01:20.7]} 33... Rd8
{[%clk 0:00:47.9]} 34. b3 {[%clk 0:01:19.8]} 34... Re8 {[%clk 0:00:47.9]} 35.
Rf1 {[%clk 0:01:19.6]} 35... Re7 {[%clk 0:00:47]} 36. Rc8 {[%clk 0:01:18.4]}
36... Rd6 {[%clk 0:00:42]} 37. f4 {[%clk 0:01:16.3]} 37... Rf6 {[%clk 0:00:36]}
38. Rd8 {[%clk 0:00:43.3]} 38... Be3 {[%clk 0:00:33.9]} 39. fxe5 {[%clk
0:00:33.1]} 39... Rxe5 {[%clk 0:00:31.6]} 40. Rd7 {[%clk 0:00:27]} 40... Rxf1
{[%clk 0:00:19.2]} 41. Kxf1 {[%clk 0:00:27]} 41... Kh6 {[%clk 0:00:16.1]} 42.
Rxf7 {[%clk 0:00:24.9]} 42... Bc5 {[%clk 0:00:14.7]} 43. Kg2 {[%clk 0:00:22.5]}
43... Re7 {[%clk 0:00:14.8]} 44. Rf6 {[%clk 0:00:20.6]} 44... Kg7 {[%clk
0:00:14.7]} 45. Rf3 {[%clk 0:00:20.6]} 45... Bd6 {[%clk 0:00:11.4]} 46. Rc3
{[%clk 0:00:19.4]} 46... Bc5 {[%clk 0:00:11.7]} 47. Rd3 {[%clk 0:00:19.2]} 47...
Re5 {[%clk 0:00:11.7]} 48. Kf3 {[%clk 0:00:19]} 48... Re7 {[%clk 0:00:11.9]} 49.
Bc4 {[%clk 0:00:19.3]} 49... Rc7 {[%clk 0:00:11.2]} 50. Rd8 {[%clk 0:00:19.3]}
50... Re7 {[%clk 0:00:11.1]} 51. Rg8+ {[%clk 0:00:19.6]} 51... Kf6 {[%clk
0:00:10.4]} 52. Rf8+ {[%clk 0:00:19.1]} 52... Kg7 {[%clk 0:00:10.7]} 53. Rd8
{[%clk 0:00:19.3]} 53... Kf6 {[%clk 0:00:09.5]} 54. Kf4 {[%clk 0:00:19.3]} 54...
Kg7 {[%clk 0:00:09.5]} 55. e5 {[%clk 0:00:18.9]} 55... Bb4 {[%clk 0:00:08.8]}
56. e6 {[%clk 0:00:19]} 56... Bc5 {[%clk 0:00:07.4]} 57. Ke5 {[%clk 0:00:17.7]}
57... Bb4 {[%clk 0:00:07.2]} 58. Rd3 {[%clk 0:00:16.6]} 58... Ba3 {[%clk
0:00:07]} 59. Rf3 {[%clk 0:00:16.7]} 59... Bb2+ {[%clk 0:00:07]} 60. Kd5 {[%clk
0:00:14.5]} 60... Ba3 {[%clk 0:00:06.8]} 61. Kc6 {[%clk 0:00:13]} 61... Bc5
{[%clk 0:00:06.9]} 62. Kd5 {[%clk 0:00:12.2]} 62... Ba3 {[%clk 0:00:06.8]} 63.
Kc6 {[%clk 0:00:11.8]} 63... Bc5 {[%clk 0:00:07.1]} 64. Rd3 {[%clk 0:00:12.5]}
64... Ba3 {[%clk 0:00:06.6]} 65. Rd8 {[%clk 0:00:12.8]} 65... Bc5 {[%clk
0:00:06.2]} 66. Rd7 {[%clk 0:00:13.1]} 66... Kf6 {[%clk 0:00:05.4]} 67. Rd3
{[%clk 0:00:12.2]} 67... Kg7 {[%clk 0:00:05.4]} 68. Rf3 {[%clk 0:00:12.4]} 68...
Ba3 {[%clk 0:00:05.5]} 69. Rf1 {[%clk 0:00:13.1]} 69... Bc5 {[%clk 0:00:04.5]}
70. Rd1 {[%clk 0:00:13.6]} 70... Kf6 {[%clk 0:00:04.1]} 71. Kd5 {[%clk
0:00:13.1]} 71... Kg7 {[%clk 0:00:04]} 72. Ke5 {[%clk 0:00:12.9]} 72... Bb4
{[%clk 0:00:03.1]} 73. Rd7 {[%clk 0:00:13.1]} 1-0